fUSD/lending_fUSD_20250319
["ID","MTS","AMOUNT","RATE_DAILY","PERIOD"]
[356390138,1742380233655,-151.0,0.00030232,7]
[356390140,1742380233666,-292.251501,0.00030232,7]
[356390142,1742380233677,-150.91,0.00030232,2]
[356390144,1742380233688,-150.91,0.00030232,2]
[356390146,1742380233698,-617.51037,0.00030233,45]
[356390148,1742380233708,-947.23,0.00030234,30]
[356390150,1742380233719,-1000.0,0.00030235,120]
[356390152,1742380233734,-200.0,0.00030236,2]
[356390154,1742380233747,-200.0,0.00030236,2]
[356390156,1742380233758,-150.0,0.00030236,2]
[356390158,1742380233767,-151.0,0.0003024,7]
[356390160,1742380233776,-259.0,0.0003024,5]
[356390162,1742380233786,-205.463742,0.0003024,7]
[356390164,1742380233797,-205.463742,0.0003024,7]
[356390166,1742380233807,-205.463742,0.0003024,7]
[356390168,1742380233817,-205.463742,0.0003024,7]
[356390170,1742380233826,-88668.13536463,0.00030242,2]
[356390172,1742380233842,-150721.19987487,0.00030242,2]
[356390174,1742380233851,-373.57337282,0.00030242,2]
[356390176,1742380233861,-179.280087,0.00030242,7]
[356390178,1742380233871,-179.280087,0.00030242,7]
[356390180,1742380233880,-350.0,0.00030242,7]
[356390182,1742380233890,-350.0,0.00030242,7]
[356390184,1742380233901,-350.0,0.00030242,7]
[356390186,1742380233910,-350.0,0.00030242,7]
[356390188,1742380233920,-151.0,0.00030242,7]
[356390190,1742380233930,-151.0,0.00030242,7]
[356390192,1742380233940,-220816.04206731,0.00030242,30]
[356390194,1742380233952,-470.18349059,0.00030242,30]
[356390197,1742380233970,-3917.8,0.00030242,30]
[356390199,1742380233981,-257.46453442,0.00030242,30]
[356390201,1742380233992,-344.16786096,0.00030242,30]
[356390203,1742380234005,-439.82856113,0.00030242,30]
[356390205,1742380234017,-766.16752,0.00030242,30]
[356390207,1742380234028,-20438.5455,0.00030242,30]
[356390301,1742380237853,-202.99232386,0.00030142,2]
[356390303,1742380237863,-106.00767689,0.00030242,5]
[356390357,1742380240707,-1230.9102667,0.00030231,2]
[356390358,1742380240717,-121.99232311,0.00030242,5]
[356390359,1742380240729,-155.87420701,0.00030242,30]
[356390360,1742380240741,-67104.6095,0.00030242,30]
[356390361,1742380240753,-665.00139014,0.00030242,30]
[356390366,1742380243082,-151.0,0.00030136,7]
[356390367,1742380243092,-151.0,0.0003022,7]
[356390368,1742380243102,-151.0,0.00030232,7]
[356390369,1742380243112,-151.0,0.00030242,7]
[356390370,1742380243121,-78.23420161,0.00030242,7]
[356390371,1742380243134,-72.76579839,0.00030242,7]
[356390372,1742380243144,-2101.36420161,0.00030242,30]
[356390373,1742380243394,-1556.425805,0.00030242,30]
[356390374,1742380244580,-151.0,0.00030242,7]
[356390375,1742380244590,-125117.78632924,0.00030242,30]
[356390380,1742380245956,-151.0,0.00030136,7]
[356390381,1742380245967,-151.0,0.0003022,7]
[356390382,1742380245977,-151.0,0.00030232,7]
[356390383,1742380245986,-191.52882462,0.00030242,5]
[356390384,1742380246010,-10.47117538,0.00030242,5]
[356390385,1742380246021,-77797.58308335,0.00030242,30]
[356390386,1742380246122,-368.91631683,0.00030242,30]
[356390387,1742381294450,10080.1454856,0.0001,2]
[356390402,1742381432091,-387.80940007,0.00026849,2]
[356390403,1742381432103,-20.64059993,0.00026849,2]
[356390404,1742381432113,-447.82,0.00027349,2]
[356390405,1742381432123,-150.0,0.00029035,7]
[356390406,1742381432134,-175.35120356,0.00029072,2]
[356390407,1742381432143,-250.0,0.00029087,2]
[356390408,1742381432153,-154.83819651,0.00029097,120]
[356390409,1742381432166,-1.98180349,0.00029097,120]
[356390410,1742381432176,-307.92,0.00029168,2]
[356390411,1742381432185,-200.0,0.00029172,2]
[356390412,1742381432195,-443.53819651,0.00029212,2]
[356390413,1742381432212,-6437.0524636,0.00029212,2]
[356390414,1742381432223,-3709.87844672,0.00029212,2]
[356390415,1742381432234,-5327.0056312,0.00029212,2]
[356390416,1742381432260,-506.25960595,0.00029212,2]
[356390417,1742381432314,-1222.65758095,0.00029212,2]
[356390418,1742381432326,-546.57209767,0.00029212,2]
[356390419,1742381432338,-253.37999998,0.00029212,2]
[356390420,1742381432349,-690.26366523,0.00029212,2]
[356390421,1742381432361,-821.26328869,0.00029212,2]
[356390422,1742381432377,-3942.1290235,0.00029212,2]
[356390423,1742381432386,-157.1,0.00029302,2]
[356390424,1742381432395,-150.0,0.00029303,2]
[356390425,1742381432404,-200.0,0.00029366,2]
[356390426,1742381432414,-155.7,0.00029414,30]
[356390427,1742381432424,-200.0,0.00029434,2]
[356390428,1742381432434,-447.82,0.00029613,2]
[356390429,1742381432443,-1000.0,0.00029633,2]
[356390430,1742381432453,-634.05,0.000299,2]
[356390431,1742381432463,-316.35349306,0.000299,5]
[356390432,1742381432473,-484.5,0.00029945,2]
[356390433,1742381432483,-2434.30474461,0.0003,2]
[356390459,1742381438075,-12693.68609798,0.0003,2]
[356390460,1742381438088,-429.0,0.0003,2]
[356390461,1742381438098,-200.0,0.0003,2]
[356390462,1742381438108,-2016.2288,0.00030142,2]
[356390463,1742381438119,-560.3477589,0.00030145,2]
[356390464,1742381438128,-5950.47596337,0.00030145,2]
[356390465,1742381438138,-1426.22080552,0.00030145,2]
[356390466,1742381438148,-178.94819271,0.00030145,2]
[356390467,1742381438159,-317.95058446,0.00030145,2]
[356390470,1742381438412,-202.99232384,0.00030145,2]
[356390471,1742381438423,-4056.60631712,0.00030145,2]
[356390472,1742381438433,-1279.6874,0.00030145,3]
[356390473,1742381438443,-167.329,0.000302,25]
[356390474,1742381438452,-611.182,0.000302,25]
[356390476,1742381438462,-415.0,0.000302,2]
[356390478,1742381438471,-5950.47596333,0.00030229,2]
[356390480,1742381438481,-346.0,0.0003023,9]
[356390482,1742381438491,-150.91,0.00030235,2]
[356390483,1742381438501,-1214.8523168,0.00030237,2]
[356390484,1742381438511,-277.8711652,0.00030237,2]
[356390485,1742381438521,-200.0,0.00030242,2]
[356390486,1742381438531,-150.0,0.00030242,2]
[356390487,1742381438541,-200.0,0.00030242,2]
[356390488,1742381438551,-514.59198,0.00030242,45]
[356390489,1742381438560,-679.65946373,0.00030244,30]
[356390490,1742381438572,-320.34053627,0.00030244,30]
[356390491,1742381438581,-1000.0,0.00030244,60]
[356390492,1742381438590,-1000.0,0.00030244,30]
[356390493,1742381438600,-675.97776642,0.00030244,30]
[356390494,1742381438611,-324.02223358,0.00030244,30]
[356390495,1742381438621,-145.15428113,0.00030245,5]
[356390496,1742381438632,-4.84571887,0.00030245,5]
[356390497,1742381438643,-186.78668641,0.00030245,2]
[356390498,1742381438652,-119694.66761975,0.00030245,2]
[356390499,1742381438662,-70979.91743207,0.00030245,30]
[356390500,1742381438674,-28207.13653497,0.00030245,30]
[356390501,1742381438685,-3236.70903572,0.00030245,30]
[356390505,1742381440238,-372.52465706,0.00030245,30]
[356390506,1742381440292,-2825.49833127,0.00030245,30]
[356390507,1742381440305,-12844.77256314,0.00030245,30]
[356390508,1742381441103,-2452.45000008,0.00030245,30]
[356390509,1742381441116,-635.35,0.00030245,30]
[356390510,1742381441127,-992.64658651,0.00030245,30]
[356390539,1742381443279,-272.37960492,0.00030245,30]
[356390586,1742381446102,-755.0804942,0.00030245,30]
[356390587,1742381446158,-4565.90183218,0.00030245,30]
[356390588,1742381446317,-392394.50707072,0.00030245,30]
[356390591,1742381446425,-383.5086327,0.00030245,30]
[356390592,1742381446664,-458.47014067,0.00030245,30]
[356390593,1742381446676,-626.8265502,0.00030245,30]
[356390594,1742381446692,-4163.89869473,0.00030245,30]
[356390615,1742382632253,-238.86,0.00026849,2]
[356390616,1742382632263,-447.47,0.00027277,2]
[356390617,1742382632273,-330.614,0.00029125,2]
[356390618,1742382632283,-150.0,0.00029152,7]
[356390619,1742382632293,-194.62671031,0.00029226,2]
[356390620,1742382632305,-592.36206145,0.00029226,2]
[356390621,1742382632326,-13427.43366975,0.00029226,2]
[356390622,1742382632337,-8809.98435346,0.00029226,2]
[356390623,1742382632348,-875.59320503,0.00029226,2]
[356390624,1742382632357,-153.96,0.00029251,2]
[356390625,1742382632367,-154.7,0.00029311,30]
[356390626,1742382632376,-161.15,0.0002936,2]
[356390627,1742382632386,-1000.0,0.00029433,2]
[356390628,1742382632397,-150.0,0.0002946,2]
[356390629,1742382632407,-710.58,0.000295,2]
[356390630,1742382632417,-447.47,0.00029541,2]
[356390631,1742382632427,-46.54679497,0.000299,5]
[356390632,1742382632442,-259.26158179,0.000299,5]
[356390633,1742382632452,-346.05,0.00029948,2]
[356390634,1742382632461,-402.0,0.0003,2]
[356390635,1742382632471,-200.0,0.00030003,2]
[356390636,1742382632482,-434.12775321,0.00030123,2]
[356390637,1742382632493,-178.94819271,0.00030148,2]
[356390638,1742382632505,-520.83338844,0.00030148,2]
[356390639,1742382632516,-103.80656458,0.00030148,2]
[356390640,1742382632529,-475.47500001,0.00030148,2]
[356390641,1742382632541,-551.93113899,0.00030148,2]
[356390642,1742382632554,-3629.16806712,0.00030148,2]
[356390643,1742382632564,-148.02568182,0.00030148,2]
[356390644,1742382632579,-979.09954486,0.00030148,2]
[356390645,1742382632589,-202.99232384,0.00030148,2]
[356390646,1742382632598,-2704.4042114,0.00030148,2]
[356390647,1742382632608,-158.12435457,0.00030148,5]
[356390648,1742382632617,-902.6321883,0.00030148,2]
[356390649,1742382632628,-509.05680043,0.00030148,2]
[356390650,1742382632639,-6642.32301769,0.00030148,2]
[356390651,1742382632649,-1290.69542458,0.00030148,3]
[356390652,1742382632660,-762.17542217,0.00030148,3]
[356390653,1742382632671,-389.83548332,0.00030148,3]
[356390654,1742382632683,-2557.29366993,0.00030148,3]
[356390655,1742382632692,-1838.45085366,0.00030232,2]
[356390656,1742382632704,-639.900128,0.00030232,2]
[356390665,1742382638163,-2282.029789,0.00030232,2]
[356390666,1742382638173,-1127.1252266,0.00030232,2]
[356390667,1742382638183,-150.91,0.00030238,2]
[356390668,1742382638193,-200.0,0.00030245,2]
[356390669,1742382638203,-168.27555888,0.00030245,25]
[356390670,1742382638268,-441.97844112,0.00030245,25]
[356390671,1742382638278,-105.37155888,0.00030245,45]
[356390672,1742382638290,-364.90088112,0.00030245,45]
[356390673,1742382638300,-1144.12119965,0.00030247,15]
[356390674,1742382638310,-163.97724761,0.00030247,2]
[356390675,1742382638319,-219.0,0.00030248,5]
[356390676,1742382638329,-18095.33009012,0.00030248,2]
[356390677,1742382638341,-417.59,0.00030248,2]
[356390678,1742382638353,-1588.75581751,0.00030248,2]
[356390679,1742382638365,-334.47,0.00030248,2]
[356390680,1742382638377,-108971.02920071,0.00030248,2]
[356390681,1742382638386,-263.93530522,0.00030248,2]
[356390682,1742382638396,-108414.09200756,0.00030248,30]
[356390683,1742382638408,-1483.13037232,0.00030248,30]
[356390684,1742382638429,-13401.88,0.00030248,30]
[356390714,1742382640471,-2545.13574791,0.00030248,30]
[356390715,1742382640484,-5000.0,0.00030248,30]
[356390716,1742382640527,-9609.59999992,0.00030248,30]
[356390717,1742382640582,-224013.44579455,0.00030248,30]
[356390718,1742382640594,-565.32665385,0.00030248,30]
[356390719,1742382640636,-336.0581857,0.00030248,30]
[356390720,1742382640647,-4555.55,0.00030248,30]
[356390721,1742382640746,-416.59088653,0.00030248,30]
[356390722,1742382640759,-451.13939267,0.00030248,30]
[356390723,1742382640772,-411.31082313,0.00030248,30]
[356390724,1742382640850,-615.6505,0.00030248,30]
[356390746,1742382643368,-317.95058446,0.00030148,2]
[356390748,1742382643378,-20912.15702106,0.00030248,30]
[356390760,1742382643526,-8812.05269706,0.00030248,30]
[356390767,1742382646662,-1363.427367,0.00030248,30]
[356390769,1742383509342,66947.07075991,0.0001,2]
[356390770,1742383509370,100000.0,0.0001,2]
[356390771,1742383509400,101728.60309337,0.0001,2]
[356390798,1742383831585,-345.79,0.00026849,2]
[356390799,1742383831595,-2552.774475,0.00028578,2]
[356390800,1742383831604,-200.0,0.00028723,2]
[356390801,1742383831614,-200.0,0.00028737,2]
[356390802,1742383831625,-150.0,0.00028793,2]
[356390803,1742383831634,-150.27,0.00028838,2]
[356390804,1742383831644,-150.0,0.00028857,2]
[356390805,1742383831653,-2776.12,0.00028895,2]
[356390806,1742383831664,-341.5246821,0.000289,5]
[356390807,1742383831673,-150.0,0.00028924,7]
[356390808,1742383831683,-634.17,0.00028939,2]
[356390809,1742383831692,-200.0,0.00028949,2]
[356390810,1742383831702,-862.37225078,0.00028961,120]
[356390811,1742383831713,-237.62774922,0.00028961,120]
[356390812,1742383831722,-150.27,0.00028982,2]
[356390813,1742383831732,-313.455,0.00028998,2]
[356390814,1742383831742,-716.23287294,0.00029057,2]
[356390815,1742383831757,-513.68550688,0.00028924,2]
[356390816,1742383831768,-2085.94825,0.00028924,2]
[356390817,1742383831780,-1103.53624312,0.00028924,2]
[356390818,1742383831793,-2332.63712706,0.00029057,2]
[356390819,1742383831803,-150.27,0.00029126,2]
[356390820,1742383831812,-23900.0,0.00029162,2]
[356390821,1742383831825,-1018.04,0.00029164,2]
[356390822,1742383831834,-162.61,0.00029214,2]
[356390823,1742383831843,-152.37,0.00029237,120]
[356390824,1742383831854,-150.99,0.00029237,2]
[356390825,1742383831864,-250.0,0.0002927,2]
[356390826,1742383831873,-634.05,0.0002927,2]
[356390827,1742383831883,-1223.87,0.0002927,2]
[356390828,1742383831892,-8759.57,0.0002927,10]
[356390829,1742383831904,-150.27,0.0002927,2]
[356390830,1742383831914,-154.95,0.00029339,30]
[356390831,1742383831924,-780.08,0.00029341,2]
[356390832,1742383831934,-780.08,0.00029341,2]
[356390833,1742383831944,-355.18,0.00029341,2]
[356390834,1742383831955,-150.27,0.00029415,2]
[356390835,1742383831966,-1000.0,0.00029427,2]
[356390836,1742383831976,-300.0,0.00029478,2]
[356390837,1742383831988,-350.0,0.00029534,2]
[356390838,1742383831999,-350.0,0.00029534,2]
[356390839,1742383832011,-350.0,0.00029534,2]
[356390840,1742383832021,-150.27,0.00029559,2]
[356390842,1742383832031,-150.27,0.00029703,2]
[356390844,1742383832046,-150.0,0.00029747,2]
[356390846,1742383832057,-150.27,0.00029847,2]
[356390848,1742383832068,-5403.07792233,0.0002995,2]
[356390850,1742383832078,-385.6,0.00029951,2]
[356390852,1742383832089,-150.27,0.00029991,2]
[356390854,1742383832100,-377.0,0.0003,2]
[356390856,1742383832109,-12521.53606689,0.0003,2]
[356390858,1742383832118,-200.0,0.00030006,2]
[356390859,1742383832129,-434.12775321,0.00030123,2]
[356390860,1742383832139,-150.27,0.00030135,2]
[356390861,1742383832149,-614.049,0.00030148,25]
[356390862,1742383832159,-11316.2629,0.00030148,2]
[356390863,1742383832169,-2500.0,0.00030151,2]
[356390864,1742383832180,-1562.1473,0.00030151,2]
[356390865,1742383832190,-223.8225,0.00030151,3]
[356390866,1742383832199,-481.17316962,0.00030151,2]
[356390867,1742383832208,-901.70018128,0.00030151,2]
[356390868,1742383832218,-7948.67745271,0.00030151,2]
[356390869,1742383832227,-166.03096228,0.00030151,2]
[356390870,1742383832237,-1331.13941856,0.00030151,2]
[356390871,1742383832247,-268.72251639,0.00030152,2]
[356390872,1742383832256,-901.70018128,0.00030234,2]
[356390873,1742383832266,-7948.67745269,0.00030234,2]
[356390874,1742383832276,-150.92,0.00030241,2]
[356390875,1742383832289,-150.0,0.00030245,2]
[356390876,1742383832299,-562.74635855,0.00030245,2]
[356390877,1742383832308,-160.0,0.00030245,2]
[356390878,1742383832318,-3000.0,0.00030246,30]
[356390879,1742383832327,-1000.0,0.00030247,2]
[356390880,1742383832337,-1000.0,0.00030247,2]
[356390881,1742383832347,-150.0,0.00030247,2]
[356390882,1742383832357,-201.632,0.00030248,120]
[356390883,1742383832366,-200.0,0.00030248,2]
[356390884,1742383832375,-391.8937,0.00030248,45]
[356390885,1742383832385,-176.6551182,0.0003025,2]
[356390886,1742383832395,-500.0,0.0003025,2]
[356390887,1742383832405,-500.0,0.0003025,2]
[356390888,1742383832415,-500.0,0.0003025,2]
[356390889,1742383832424,-500.0,0.0003025,2]
[356390890,1742383832433,-500.0,0.0003025,2]
[356390891,1742383832443,-533.37158237,0.0003025,2]
[356390892,1742383832453,-500.0,0.0003025,2]
[356390893,1742383832463,-500.0,0.0003025,2]
[356390894,1742383832472,-500.0,0.0003025,2]
[356390895,1742383832482,-500.0,0.0003025,2]
[356390896,1742383832492,-500.0,0.0003025,2]
[356390897,1742383832502,-500.0,0.0003025,2]
[356390898,1742383832511,-250.0,0.0003025,2]
[356390899,1742383832521,-300.0,0.0003025,10]
[356390900,1742383832531,-3000.0,0.0003025,10]
[356390901,1742383832542,-346.70369997,0.00030251,18]
[356390902,1742383832552,-176092.17914807,0.00030251,18]
[356390903,1742383832561,-158.0,0.00030251,5]
[356390904,1742383832571,-121887.08595843,0.00030251,30]
[356390905,1742383832584,-547.25853702,0.00030251,30]
[356390906,1742383832596,-261.96657699,0.00030251,30]
[356390911,1742383837349,-35151.89751191,0.00030251,30]
[356390916,1742383837405,-5076.53004,0.00030251,30]
[356390918,1742383837417,-3085.56098277,0.00030251,30]
[356390920,1742383837429,-491.99999916,0.00030251,30]
[356390926,1742383837514,-1072.35,0.00030251,30]
[356390927,1742383837624,-440.99088444,0.00030251,30]
[356390928,1742383837640,-510.0000005,0.00030251,30]
[356390929,1742383837653,-1006.35996489,0.00030251,30]
[356390938,1742383839488,-1204.04109979,0.00030251,30]
[356390939,1742383839501,-405.51999328,0.00030251,30]
[356390940,1742383839513,-384.00092001,0.00030251,30]
[356390941,1742383839647,-5689.26436536,0.00030251,30]
[356390942,1742383839660,-1310.73563464,0.00030251,30]
[356390943,1742383839808,-483.73595686,0.00030251,30]
[356390987,1742383843548,-317.95058446,0.00030151,2]
[356390988,1742383843567,-13461.38345311,0.00030251,30]
[356390989,1742383843588,-1124.32626471,0.00030251,30]
[356390990,1742383843608,-745.46981419,0.00030251,30]
[356390992,1742383845553,-151.0,0.00030251,5]
[356390993,1742383845563,-1071.23124289,0.00030251,30]
[356390994,1742383845574,-46806.23352957,0.00030251,30]
[356390995,1742383845586,-1049.99669866,0.00030251,30]
[356390996,1742383845712,-22445.49806591,0.00030251,30]
[356390997,1742383845723,-857.82849578,0.00030251,30]
[356391012,1742385031656,-370.76858744,0.0002,2]
[356391013,1742385031763,-851.36406778,0.0002,2]
[356391014,1742385031818,-998.42507948,0.0002,2]
[356391015,1742385031830,-164.96768207,0.00026749,2]
[356391016,1742385031840,-388.02,0.00026849,2]
[356391017,1742385031850,-515.53,0.00027727,2]
[356391018,1742385031859,-800.82437285,0.00028438,30]
[356391019,1742385031870,-800.82437285,0.00028575,30]
[356391020,1742385031880,-1604.87,0.00028697,2]
[356391021,1742385031890,-800.82437285,0.00028712,30]
[356391022,1742385031900,-2439.09,0.00028769,2]
[356391023,1742385031910,-150.99,0.00028849,2]
[356391024,1742385031919,-800.82437285,0.00028849,30]
[356391025,1742385031929,-330.14052603,0.000289,5]
[356391026,1742385031939,-553.54162531,0.000289,60]
[356391027,1742385031948,-157.1,0.000289,2]
[356391028,1742385031958,-300.0,0.00028985,2]
[356391029,1742385031968,-800.82437285,0.00028986,30]
[356391030,1742385031978,-150.0,0.00029078,2]
[356391031,1742385031987,-800.82437285,0.00029123,30]
[356391032,1742385031997,-353.76,0.00029178,2]
[356391033,1742385032007,-509.02,0.000292,2]
[356391034,1742385032017,-17676.03385001,0.00029253,2]
[356391035,1742385032057,-890.00006576,0.00029253,2]
[356391056,1742385037567,-420.985,0.00029253,2]
[356391057,1742385037619,-898.169,0.00029253,2]
[356391058,1742385037672,-604.69175495,0.00029253,2]
[356391059,1742385037780,-3410.12032928,0.00029253,2]
[356391060,1742385037790,-800.82437285,0.0002926,30]
[356391061,1742385037800,-250.0,0.00029281,2]
[356391062,1742385037810,-154.95,0.00029326,30]
[356391063,1742385037819,-1000.0,0.00029359,2]
[356391064,1742385037829,-800.82437285,0.00029397,30]
[356391065,1742385037839,-800.82437285,0.00029534,30]
[356391066,1742385037849,-800.82437285,0.00029671,30]
[356391067,1742385037859,-800.82437285,0.00029808,30]
[356391068,1742385037870,-240.11,0.00029831,2]
[356391069,1742385037879,-3019.02,0.00029831,2]
[356391071,1742385037888,-800.82437285,0.00029945,30]
[356391072,1742385037898,-3095.07536975,0.0002995,2]
[356391074,1742385037908,-515.53,0.00029991,2]
[356391077,1742385037918,-354.0,0.0003,2]
[356391079,1742385037927,-491.239,0.00030008,24]
[356391081,1742385037938,-510.0,0.00030027,2]
[356391083,1742385037948,-500.675,0.00030149,2]
[356391085,1742385037958,-166.03096226,0.0003015,2]
[356391086,1742385037967,-412.43414538,0.0003015,2]
[356391088,1742385037978,-6839.88997973,0.0003015,2]
[356391089,1742385037987,-721.36014506,0.0003015,2]
[356391090,1742385037997,-1242.3967906,0.0003015,2]
[356391091,1742385038006,-792.87124742,0.00030167,2]
[356391092,1742385038022,-821.26035423,0.00030167,2]
[356391118,1742385039783,-384.69294028,0.00030167,2]
[356391129,1742385039891,-478.21800647,0.00030167,2]
[356391156,1742385042715,-2841.29997,0.00030167,2]
[356391157,1742385042768,-4500.08105327,0.00030167,2]
[356391158,1742385042782,-2439.09,0.00030207,2]
[356391159,1742385042793,-6839.88997968,0.00030233,2]
[356391160,1742385042802,-721.36014502,0.00030233,2]
[356391161,1742385042811,-150.92,0.0003024,2]
[356391162,1742385042821,-316.01466578,0.00030249,10]
[356391163,1742385042832,-500.0,0.00030249,2]
[356391164,1742385042842,-500.0,0.00030249,2]
[356391165,1742385042852,-500.0,0.00030249,2]
[356391166,1742385042862,-648.36010765,0.00030249,2]
[356391167,1742385042872,-500.0,0.00030249,2]
[356391168,1742385042882,-500.0,0.00030249,2]
[356391169,1742385042892,-500.0,0.00030249,2]
[356391170,1742385042902,-890.4824822,0.00030249,2]
[356391171,1742385042911,-178.0964964,0.00030249,2]
[356391172,1742385042921,-1243.936235,0.00030249,2]
[356391173,1742385042931,-205.5158181,0.00030249,2]
[356391174,1742385042940,-6423.98897,0.00030249,2]
[356391175,1742385042950,-173.35184999,0.0003025,18]
[356391176,1742385042960,-12700.89041661,0.0003025,18]
[356391177,1742385042972,-75345.19915743,0.0003025,18]
[356391178,1742385042982,-1440310.40881796,0.0003025,30]
[356391179,1742385042994,-592.45185364,0.0003025,30]
[356391182,1742385045651,-9811.7604,0.0003025,30]
[356391183,1742385045703,-8372.1,0.0003025,30]
[356391184,1742385045764,-693.34556712,0.0003025,30]
[356391187,1742385046459,-21326.79801094,0.0003025,30]
[356391188,1742385046471,-1662.94585199,0.0003025,30]
[356391189,1742385046483,-10496.36422747,0.0003025,30]
[356391194,1742386231852,-3094.05519288,0.00025,30]
[356391195,1742386231865,-5458.6877731,0.00025,30]
[356391196,1742386231905,-493.78059,0.00025,30]
[356391197,1742386231959,-4525.88526394,0.00025,30]
[356391198,1742386231969,-319.1358418,0.000259,4]
[356391199,1742386231980,-150.0,0.00025925,2]
[356391200,1742386231990,-153.38623487,0.00026849,2]
[356391201,1742386232000,-226.91,0.00026849,2]
[356391202,1742386232010,-150.0,0.000275,2]
[356391203,1742386232020,-150.0,0.000275,2]
[356391204,1742386232030,-505.39,0.00027517,2]
[356391205,1742386232040,-490.7794,0.00028645,2]
[356391206,1742386232049,-1000.0,0.00028683,2]
[356391207,1742386232059,-250.0,0.00028745,2]
[356391208,1742386232069,-10141.01,0.00028745,2]
[356391209,1742386232079,-150.0,0.00028745,2]
[356391210,1742386232089,-1463.45,0.00028768,2]
[356391211,1742386232099,-880.32,0.00028768,2]
[356391212,1742386232110,-494.72939063,0.00028776,2]
[356391213,1742386232122,-512.98060937,0.00028776,2]
[356391214,1742386232131,-260.46428371,0.00028957,2]
[356391215,1742386232144,-285.77571629,0.00028957,2]
[356391216,1742386232154,-151.78,0.00028972,2]
[356391217,1742386232164,-151.78,0.00029057,2]
[356391218,1742386232174,-659.33828371,0.00029085,2]
[356391219,1742386232186,-12770.04171629,0.00029085,2]
[356391220,1742386232196,-151.78,0.00029142,2]
[356391221,1742386232206,-151.78,0.00029227,2]
[356391222,1742386232216,-725.03,0.00029299,2]
[356391223,1742386232225,-151.78,0.00029313,2]
[356391224,1742386232235,-161.15,0.00029363,2]
[356391225,1742386232245,-151.78,0.00029398,2]
[356391226,1742386232254,-154.95,0.00029423,30]
[356391227,1742386232267,-151.78,0.00029483,2]
[356391228,1742386232277,-151.78,0.00029568,2]
[356391229,1742386232288,-151.78,0.00029654,2]
[356391230,1742386232297,-3019.05,0.000297,2]
[356391231,1742386232307,-7958.62,0.000297,2]
[356391232,1742386232317,-151.78,0.00029739,2]
[356391233,1742386232326,-505.39,0.00029781,2]
[356391234,1742386232336,-151.78,0.00029824,2]
[356391235,1742386232346,-500.0,0.00029849,2]
[356391236,1742386232355,-500.0,0.00029849,2]
[356391237,1742386232365,-500.0,0.00029849,2]
[356391238,1742386232374,-500.0,0.00029849,2]
[356391239,1742386232384,-500.0,0.00029849,2]
[356391240,1742386232395,-442.5,0.00029849,2]
[356391241,1742386232404,-500.0,0.00029849,2]
[356391242,1742386232414,-500.0,0.00029849,2]
[356391243,1742386232423,-500.0,0.00029849,2]
[356391244,1742386232433,-428.03870756,0.00029849,2]
[356391245,1742386232443,-500.0,0.00029849,2]
[356391246,1742386232453,-5586.60980946,0.0002988,2]
[356391247,1742386232463,-5586.60980939,0.00029882,2]
[356391248,1742386232473,-5586.60980939,0.00029884,2]
[356391249,1742386232483,-5586.60980939,0.00029887,2]
[356391250,1742386232493,-5586.60980939,0.00029889,2]
[356391251,1742386232503,-577.08811607,0.0002989,2]
[356391252,1742386232512,-577.08811601,0.00029891,2]
[356391253,1742386232521,-5586.60980939,0.00029891,2]
[356391254,1742386232531,-577.08811601,0.00029892,2]
[356391255,1742386232541,-577.08811601,0.00029893,2]
[356391256,1742386232550,-5586.60980939,0.00029893,2]
[356391257,1742386232560,-317.95058446,0.00029894,2]
[356391258,1742386232569,-577.08811601,0.00029894,2]
[356391259,1742386232579,-577.08811601,0.00029896,2]
[356391260,1742386232590,-5586.60980939,0.00029896,2]
[356391261,1742386232602,-577.08811601,0.00029897,2]
[356391262,1742386232616,-577.08811601,0.00029898,2]